[Event "Early-Titled-Tuesday-Blitz-July-09-2024"]
[Site "Chess.com"]
[Date "2024.07.09"]
[Round "4"]
[White "nindjaxx8"]
[Black "montyotto"]
[Result "1-0"]
[WhiteElo "2710"]
[BlackElo "2421"]
[TimeControl "180+1"]
[EndTime "8:38:03 PDT"]
[Termination "nindjaxx8 won by checkmate"]

1. a3 {[%clk 0:03:00.8]} 1... e5 {[%clk 0:02:59.6]} 2. e3 {[%clk 0:02:59.4]}
2... d5 {[%clk 0:02:59.4]} 3. d4 {[%clk 0:02:59.2]} 3... Nc6 {[%clk 0:02:57.9]}
4. Bb5 {[%clk 0:02:51]} 4... Bd6 {[%clk 0:02:42.9]} 5. dxe5 {[%clk 0:02:47]}
5... Bxe5 {[%clk 0:02:42.2]} 6. Nf3 {[%clk 0:02:47.7]} 6... Bg4 {[%clk 0:02:28]}
7. h3 {[%clk 0:02:43.5]} 7... Bxf3 {[%clk 0:02:27.7]} 8. Qxf3 {[%clk 0:02:44.4]}
8... Nf6 {[%clk 0:02:27.9]} 9. O-O {[%clk 0:02:43.3]} 9... O-O {[%clk
0:02:27.3]} 10. Rd1 {[%clk 0:02:43.7]} 10... Qe7 {[%clk 0:02:12.6]} 11. Nd2
{[%clk 0:02:37.6]} 11... Rad8 {[%clk 0:02:08.6]} 12. Nb3 {[%clk 0:02:36]} 12...
Ne4 {[%clk 0:02:00.8]} 13. Bxc6 {[%clk 0:02:12.4]} 13... bxc6 {[%clk 0:02:00.6]}
14. Nd4 {[%clk 0:02:12.9]} 14... Qd7 {[%clk 0:01:39.3]} 15. Rb1 {[%clk 0:02:02]}
15... c5 {[%clk 0:01:29]} 16. Ne2 {[%clk 0:01:51.1]} 16... c6 {[%clk 0:01:22.1]}
17. Bd2 {[%clk 0:01:49.9]} 17... Rfe8 {[%clk 0:01:12.8]} 18. Ba5 {[%clk
0:01:46.6]} 18... Bc7 {[%clk 0:00:26]} 19. Bxc7 {[%clk 0:01:30.5]} 19... Qxc7
{[%clk 0:00:26.1]} 20. c4 {[%clk 0:01:28.8]} 20... Re6 {[%clk 0:00:24.8]} 21.
Nf4 {[%clk 0:01:25.1]} 21... Rf6 {[%clk 0:00:20.3]} 22. cxd5 {[%clk 0:01:24.1]}
22... cxd5 {[%clk 0:00:20.4]} 23. Nxd5 {[%clk 0:01:16.1]} 23... Rxf3 {[%clk
0:00:18.4]} 24. Nxc7 {[%clk 0:01:15.6]} 24... Rxf2 {[%clk 0:00:18.5]} 25. Rxd8#
{[%clk 0:01:15.2]} 1-0

[Event "Early-Titled-Tuesday-Blitz-July-09-2024"]
[Site "Chess.com"]
[Date "2024.07.09"]
[Round "4"]
[White "biveklama"]
[Black "MarijaKuznecova"]
[Result "1-0"]
[WhiteElo "2674"]
[BlackElo "2420"]
[TimeControl "180+1"]
[EndTime "8:38:05 PDT"]
[Termination "biveklama won by resignation"]

1. e4 {[%clk 0:03:00.9]} 1... c5 {[%clk 0:02:59.4]} 2. Nf3 {[%clk 0:02:59.8]}
2... d6 {[%clk 0:02:57.5]} 3. d4 {[%clk 0:02:59.4]} 3... cxd4 {[%clk 0:02:58.4]}
4. Nxd4 {[%clk 0:03:00]} 4... Nf6 {[%clk 0:02:59]} 5. Nc3 {[%clk 0:03:00.3]}
5... a6 {[%clk 0:02:59.5]} 6. h3 {[%clk 0:02:58.3]} 6... e5 {[%clk 0:02:58.4]}
7. Nb3 {[%clk 0:02:58]} 7... Be7 {[%clk 0:02:57.9]} 8. Be3 {[%clk 0:02:57.2]}
8... Be6 {[%clk 0:02:58]} 9. g4 {[%clk 0:02:52.2]} 9... a5 {[%clk 0:02:50]} 10.
g5 {[%clk 0:02:50.5]} 10... Nfd7 {[%clk 0:02:49.1]} 11. h4 {[%clk 0:02:50.4]}
11... a4 {[%clk 0:02:48.2]} 12. Nd2 {[%clk 0:02:40.2]} 12... Nc6 {[%clk
0:02:47.6]} 13. Nc4 {[%clk 0:02:29.3]} 13... Ndb8 {[%clk 0:02:16.6]} 14. Nb5
{[%clk 0:02:11.4]} 14... Bxc4 {[%clk 0:02:06.8]} 15. Bxc4 {[%clk 0:02:12.3]}
15... Na6 {[%clk 0:02:06.1]} 16. h5 {[%clk 0:02:01.8]} 16... Nd4 {[%clk
0:01:44.4]} 17. Nxd4 {[%clk 0:01:53.1]} 17... exd4 {[%clk 0:01:45.3]} 18. Qxd4
{[%clk 0:01:53.2]} 18... f6 {[%clk 0:01:29.1]} 19. h6 {[%clk 0:01:51.6]} 19...
g6 {[%clk 0:01:24]} 20. Bb5+ {[%clk 0:01:39.2]} 20... Kf8 {[%clk 0:01:21.7]} 21.
O-O-O {[%clk 0:01:36.2]} 21... a3 {[%clk 0:01:15.4]} 22. Rh4 {[%clk 0:01:33.9]}
22... axb2+ {[%clk 0:01:13.2]} 23. Kb1 {[%clk 0:01:34.3]} 23... Nc5 {[%clk
0:01:04]} 24. gxf6 {[%clk 0:01:28.4]} 24... Bxf6 {[%clk 0:01:04.9]} 25. Rf4
{[%clk 0:01:28.7]} 25... Kf7 {[%clk 0:00:32.1]} 26. Bc4+ {[%clk 0:01:25.8]}
26... Ke8 {[%clk 0:00:32.4]} 27. Rxf6 {[%clk 0:01:24.9]} 27... Na4 {[%clk
0:00:30.1]} 28. Bb5+ {[%clk 0:01:21]} 28... Ke7 {[%clk 0:00:27.6]} 29. Bg5
{[%clk 0:01:20.5]} 1-0

[Event "Early-Titled-Tuesday-Blitz-July-09-2024"]
[Site "Chess.com"]
[Date "2024.07.09"]
[Round "4"]
[White "ALRS-SPS"]
[Black "UnTucopalaTimba"]
[Result "1-0"]
[WhiteElo "2393"]
[BlackElo "2144"]
[TimeControl "180+1"]
[EndTime "8:38:05 PDT"]
[Termination "ALRS-SPS won by resignation"]

1. e4 {[%clk 0:03:00.9]} 1... c6 {[%clk 0:02:59.3]} 2. d4 {[%clk 0:02:59.3]}
2... d5 {[%clk 0:02:59.6]} 3. Nc3 {[%clk 0:02:59.7]} 3... dxe4 {[%clk
0:02:57.5]} 4. Nxe4 {[%clk 0:03:00.1]} 4... Bf5 {[%clk 0:02:57.9]} 5. Ng3 {[%clk
0:03:00.3]} 5... Bg6 {[%clk 0:02:57.9]} 6. Nf3 {[%clk 0:03:00.7]} 6... Nd7
{[%clk 0:02:57.3]} 7. Bd3 {[%clk 0:03:00.9]} 7... Bxd3 {[%clk 0:02:55.6]} 8.
Qxd3 {[%clk 0:03:01.1]} 8... e6 {[%clk 0:02:55.1]} 9. Bf4 {[%clk 0:03:00.7]}
9... Qa5+ {[%clk 0:02:53.7]} 10. Bd2 {[%clk 0:03:00.2]} 10... Bb4 {[%clk
0:02:53.5]} 11. c3 {[%clk 0:02:55.9]} 11... Be7 {[%clk 0:02:53.2]} 12. a3 {[%clk
0:02:55.4]} 12... Ngf6 {[%clk 0:02:51.5]} 13. O-O {[%clk 0:02:55.2]} 13... O-O
{[%clk 0:02:45.8]} 14. Rfe1 {[%clk 0:02:55.5]} 14... Rfe8 {[%clk 0:02:41.8]} 15.
b4 {[%clk 0:02:55.6]} 15... Qc7 {[%clk 0:02:39.2]} 16. Rad1 {[%clk 0:02:56]}
16... b6 {[%clk 0:02:34.1]} 17. Bg5 {[%clk 0:02:53.6]} 17... c5 {[%clk
0:02:20.8]} 18. dxc5 {[%clk 0:02:48.7]} 18... bxc5 {[%clk 0:02:16.9]} 19. Rc1
{[%clk 0:02:46.1]} 19... h6 {[%clk 0:02:10.9]} 20. Be3 {[%clk 0:02:43.3]} 20...
Red8 {[%clk 0:02:03.5]} 21. Qe2 {[%clk 0:02:39.7]} 21... Nb6 {[%clk 0:01:58.9]}
22. Red1 {[%clk 0:02:38.9]} 22... Nbd5 {[%clk 0:01:51]} 23. Bd2 {[%clk
0:02:34.5]} 23... cxb4 {[%clk 0:01:47.7]} 24. cxb4 {[%clk 0:02:34.6]} 24... Qb7
{[%clk 0:01:43.5]} 25. Ne4 {[%clk 0:02:33.5]} 25... Rac8 {[%clk 0:01:36.4]} 26.
h3 {[%clk 0:02:27.7]} 26... Rxc1 {[%clk 0:01:34.8]} 27. Rxc1 {[%clk 0:02:28]}
27... Nxe4 {[%clk 0:01:33.2]} 28. Qxe4 {[%clk 0:02:27.6]} 28... Qa6 {[%clk
0:01:30.4]} 29. Ra1 {[%clk 0:02:12]} 29... Rc8 {[%clk 0:01:26]} 30. Ne5 {[%clk
0:02:10]} 30... Bf6 {[%clk 0:01:19.6]} 31. Bf4 {[%clk 0:02:02.7]} 31... Qb5
{[%clk 0:01:14.4]} 32. Re1 {[%clk 0:02:00.4]} 32... Rc3 {[%clk 0:01:07.9]} 33.
Ng4 {[%clk 0:01:56.4]} 33... Rxa3 {[%clk 0:01:00.8]} 34. Rc1 {[%clk 0:01:56.2]}
34... Qb7 {[%clk 0:00:54.9]} 35. Nxf6+ {[%clk 0:01:54.8]} 35... gxf6 {[%clk
0:00:53.3]} 36. Bxh6 {[%clk 0:01:55.1]} 36... f5 {[%clk 0:00:47.1]} 37. Qe5
{[%clk 0:01:53.2]} 37... f6 {[%clk 0:00:45.8]} 38. Qxe6+ {[%clk 0:01:53.1]}
38... Qf7 {[%clk 0:00:43.5]} 39. Qxf5 {[%clk 0:01:52.3]} 39... Rc3 {[%clk
0:00:35.9]} 40. Rd1 {[%clk 0:01:45.4]} 40... Ne7 {[%clk 0:00:27.5]} 41. Rd8+
{[%clk 0:01:44.8]} 1-0

[Event "Early-Titled-Tuesday-Blitz-July-09-2024"]
[Site "Chess.com"]
[Date "2024.07.09"]
[Round "4"]
[White "chess_blitz00"]
[Black "Knightmare1014"]
[Result "1-0"]
[WhiteElo "2511"]
[BlackElo "2231"]
[TimeControl "180+1"]
[EndTime "8:38:07 PDT"]
[Termination "chess_blitz00 won by resignation"]

1. b3 {[%clk 0:03:00.9]} 1... d5 {[%clk 0:02:59.1]} 2. Bb2 {[%clk 0:03:01.8]}
2... Nf6 {[%clk 0:02:59.4]} 3. e3 {[%clk 0:03:01.7]} 3... Bf5 {[%clk 0:02:59.4]}
4. Nf3 {[%clk 0:03:01.9]} 4... e6 {[%clk 0:02:59.8]} 5. Be2 {[%clk 0:03:02.4]}
5... Bd6 {[%clk 0:02:57.9]} 6. O-O {[%clk 0:03:03]} 6... h6 {[%clk 0:02:58.3]}
7. c4 {[%clk 0:03:03.6]} 7... c6 {[%clk 0:02:58]} 8. d3 {[%clk 0:03:04.2]} 8...
O-O {[%clk 0:02:57.5]} 9. Nbd2 {[%clk 0:03:04.2]} 9... Bh7 {[%clk 0:02:57.1]}
10. Qc2 {[%clk 0:03:03.9]} 10... Nbd7 {[%clk 0:02:56.8]} 11. Rad1 {[%clk
0:03:03.6]} 11... e5 {[%clk 0:02:50]} 12. Qb1 {[%clk 0:03:03.4]} 12... e4 {[%clk
0:02:47.8]} 13. Nd4 {[%clk 0:02:58.7]} 13... exd3 {[%clk 0:02:36.5]} 14. Bxd3
{[%clk 0:02:58.6]} 14... Bxd3 {[%clk 0:01:48.7]} 15. Qxd3 {[%clk 0:02:59.5]}
15... Nc5 {[%clk 0:01:48.7]} 16. Qc2 {[%clk 0:02:57]} 16... Nce4 {[%clk
0:01:43.9]} 17. Nxe4 {[%clk 0:02:55.2]} 17... Nxe4 {[%clk 0:01:33.4]} 18. cxd5
{[%clk 0:02:53.8]} 18... cxd5 {[%clk 0:01:06.9]} 19. Nf5 {[%clk 0:02:53.7]}
19... Qg5 {[%clk 0:00:42.2]} 20. Rxd5 {[%clk 0:02:46.3]} 20... Rfe8 {[%clk
0:00:20.2]} 21. Bxg7 {[%clk 0:02:26.1]} 21... Qg6 {[%clk 0:00:15.5]} 22. Nxd6
{[%clk 0:02:20.5]} 22... Kxg7 {[%clk 0:00:08.4]} 23. Nxe8+ {[%clk 0:02:10.7]}
23... Rxe8 {[%clk 0:00:09.3]} 24. f3 {[%clk 0:02:11.4]} 24... Nf6 {[%clk
0:00:07.1]} 25. Qxg6+ {[%clk 0:02:11.5]} 25... fxg6 {[%clk 0:00:07.3]} 26. Rd3
{[%clk 0:02:12.4]} 26... Re7 {[%clk 0:00:06.1]} 27. Rfd1 {[%clk 0:02:12.9]}
27... Rc7 {[%clk 0:00:06.2]} 28. e4 {[%clk 0:02:13.5]} 28... Rc2 {[%clk
0:00:04.1]} 29. R1d2 {[%clk 0:02:13.8]} 29... Rc1+ {[%clk 0:00:03.2]} 30. Kf2
{[%clk 0:02:14.3]} 30... Nh5 {[%clk 0:00:03.1]} 31. g3 {[%clk 0:02:13.5]} 31...
Kf6 {[%clk 0:00:03.1]} 32. f4 {[%clk 0:02:13.7]} 32... g5 {[%clk 0:00:02.9]} 33.
e5+ {[%clk 0:02:13.2]} 33... Kf5 {[%clk 0:00:03.2]} 34. fxg5 {[%clk 0:02:11]}
34... hxg5 {[%clk 0:00:03.2]} 35. Re3 {[%clk 0:02:09.4]} 35... Kg4 {[%clk
0:00:03.5]} 36. Kg2 {[%clk 0:02:06.3]} 36... Ng7 {[%clk 0:00:02.5]} 37. e6
{[%clk 0:02:05.8]} 37... Nf5 {[%clk 0:00:02.7]} 38. h3+ {[%clk 0:02:04.6]} 38...
Kh5 {[%clk 0:00:01.5]} 39. g4+ {[%clk 0:02:05.2]} 39... Kh4 {[%clk 0:00:01.6]}
40. gxf5 {[%clk 0:02:06.1]} 1-0

[Event "Early-Titled-Tuesday-Blitz-July-09-2024"]
[Site "Chess.com"]
[Date "2024.07.09"]
[Round "4"]
[White "RCone"]
[Black "Crazy_girl99"]
[Result "0-1"]
[WhiteElo "2424"]
[BlackElo "2633"]
[TimeControl "180+1"]
[EndTime "8:38:10 PDT"]
[Termination "Crazy_girl99 won on time"]

1. e4 {[%clk 0:01:30.3]} 1... e5 {[%clk 0:02:59.3]} 2. Bc4 {[%clk 0:01:28.8]}
2... Nc6 {[%clk 0:02:59]} 3. Nc3 {[%clk 0:01:28]} 3... Nf6 {[%clk 0:02:57.8]} 4.
d3 {[%clk 0:01:28]} 4... Bc5 {[%clk 0:02:57.7]} 5. f4 {[%clk 0:01:26.2]} 5... d6
{[%clk 0:02:57.1]} 6. f5 {[%clk 0:01:26.1]} 6... h6 {[%clk 0:02:55.9]} 7. Nf3
{[%clk 0:01:23.5]} 7... a6 {[%clk 0:02:56]} 8. a3 {[%clk 0:01:22.9]} 8... Bd7
{[%clk 0:02:54.8]} 9. Qe2 {[%clk 0:01:20.6]} 9... Qe7 {[%clk 0:02:54.7]} 10. Be3
{[%clk 0:01:10.8]} 10... Nd4 {[%clk 0:02:53.2]} 11. Bxd4 {[%clk 0:01:08.9]}
11... exd4 {[%clk 0:02:52.8]} 12. Nd5 {[%clk 0:00:58.4]} 12... Nxd5 {[%clk
0:02:49.3]} 13. Bxd5 {[%clk 0:00:59.3]} 13... c6 {[%clk 0:02:49.2]} 14. Bb3
{[%clk 0:00:59.1]} 14... O-O-O {[%clk 0:02:47.3]} 15. O-O {[%clk 0:00:51]} 15...
d5 {[%clk 0:02:45.7]} 16. Rae1 {[%clk 0:00:32.6]} 16... dxe4 {[%clk 0:02:45.3]}
17. Qxe4 {[%clk 0:00:28]} 17... Qxe4 {[%clk 0:02:44.7]} 18. Rxe4 {[%clk
0:00:28.7]} 18... Rhf8 {[%clk 0:02:04.6]} 19. g4 {[%clk 0:00:25.1]} 19... h5
{[%clk 0:02:01.9]} 20. h3 {[%clk 0:00:24.8]} 20... hxg4 {[%clk 0:02:01.9]} 21.
hxg4 {[%clk 0:00:25.7]} 21... g6 {[%clk 0:02:02.1]} 22. Ng5 {[%clk 0:00:14.9]}
22... gxf5 {[%clk 0:01:59.8]} 23. Ref4 {[%clk 0:00:05.1]} 23... Bd6 {[%clk
0:01:50.2]} 24. Rxf5 {[%clk 0:00:04.8]} 24... Bxf5 {[%clk 0:01:49.9]} 25. Rxf5
{[%clk 0:00:05.6]} 25... Rde8 {[%clk 0:01:32.5]} 26. Bxf7 {[%clk 0:00:04.8]}
26... Re2 {[%clk 0:01:30.5]} 27. Nh7 {[%clk 0:00:02.9]} 27... Rh8 {[%clk
0:01:27.3]} 0-1

[Event "Early-Titled-Tuesday-Blitz-July-09-2024"]
[Site "Chess.com"]
[Date "2024.07.09"]
[Round "4"]
[White "WindWhistler11"]
[Black "chessmachine14"]
[Result "1-0"]
[WhiteElo "2472"]
[BlackElo "2227"]
[TimeControl "180+1"]
[EndTime "8:38:12 PDT"]
[Termination "WindWhistler11 won by resignation"]

1. Nf3 {[%clk 0:02:58.8]} 1... c5 {[%clk 0:02:56.2]} 2. g3 {[%clk 0:02:59.7]}
2... b6 {[%clk 0:02:56.3]} 3. Bg2 {[%clk 0:02:59.4]} 3... Bb7 {[%clk 0:02:56.7]}
4. d3 {[%clk 0:03:00.3]} 4... g6 {[%clk 0:02:56.6]} 5. Nbd2 {[%clk 0:03:00.6]}
5... Bg7 {[%clk 0:02:57.1]} 6. e4 {[%clk 0:03:00.6]} 6... d5 {[%clk 0:02:55.9]}
7. O-O {[%clk 0:03:00.4]} 7... e6 {[%clk 0:02:55.9]} 8. h4 {[%clk 0:03:00.1]}
8... Ne7 {[%clk 0:02:55.6]} 9. h5 {[%clk 0:03:00]} 9... Nbc6 {[%clk 0:02:51.4]}
10. Re1 {[%clk 0:02:58.2]} 10... Qc7 {[%clk 0:02:45.7]} 11. exd5 {[%clk
0:02:54]} 11... Nxd5 {[%clk 0:02:44]} 12. Ne4 {[%clk 0:02:54.2]} 12... O-O-O
{[%clk 0:02:33.6]} 13. h6 {[%clk 0:02:54.5]} 13... Bf8 {[%clk 0:02:30.3]} 14.
Bg5 {[%clk 0:02:49.7]} 14... Be7 {[%clk 0:02:29.7]} 15. Bd2 {[%clk 0:02:44.7]}
15... f5 {[%clk 0:02:29.1]} 16. Neg5 {[%clk 0:02:44.7]} 16... Bxg5 {[%clk
0:02:24.1]} 17. Nxg5 {[%clk 0:02:45.6]} 17... e5 {[%clk 0:02:10.4]} 18. Ne6
{[%clk 0:02:42.8]} 18... Qd7 {[%clk 0:02:09.8]} 19. Nxd8 {[%clk 0:02:40.9]}
19... Qxd8 {[%clk 0:02:10.7]} 20. c3 {[%clk 0:02:28.4]} 20... Re8 {[%clk
0:02:09.8]} 21. Qb3 {[%clk 0:02:28.4]} 21... Nf6 {[%clk 0:01:57.8]} 22. Bg5
{[%clk 0:02:27.1]} 22... Qd6 {[%clk 0:01:55.2]} 23. Qf7 {[%clk 0:02:23.3]} 23...
Rf8 {[%clk 0:01:46]} 24. Qg7 {[%clk 0:02:17.6]} 24... e4 {[%clk 0:01:37.5]} 25.
Bxf6 {[%clk 0:02:13.9]} 25... Rxf6 {[%clk 0:01:36.5]} 26. dxe4 {[%clk
0:02:13.5]} 26... fxe4 {[%clk 0:01:33.9]} 27. Rad1 {[%clk 0:02:13.5]} 27... Qe5
{[%clk 0:01:21]} 28. Bh3+ {[%clk 0:02:05.3]} 28... Rf5 {[%clk 0:01:00]} 29. Qg8+
{[%clk 0:01:48.2]} 29... Kc7 {[%clk 0:00:59.6]} 30. Bxf5 {[%clk 0:01:46.5]}
30... gxf5 {[%clk 0:00:57.6]} 31. Qxh7+ {[%clk 0:01:46.1]} 31... Ne7 {[%clk
0:00:54.5]} 32. Qg7 {[%clk 0:01:43.6]} 32... Qxg7 {[%clk 0:00:41.2]} 33. hxg7
{[%clk 0:01:42.7]} 33... Bc6 {[%clk 0:00:38.3]} 34. f3 {[%clk 0:01:41.8]} 34...
Ng8 {[%clk 0:00:35.7]} 35. g4 {[%clk 0:01:37.8]} 35... fxg4 {[%clk 0:00:33.3]}
36. fxg4 {[%clk 0:01:36.3]} 36... a5 {[%clk 0:00:22.9]} 37. Rf1 {[%clk
0:01:36.2]} 37... e3 {[%clk 0:00:23.1]} 38. Rf7+ {[%clk 0:01:35.5]} 1-0

[Event "Early-Titled-Tuesday-Blitz-July-09-2024"]
[Site "Chess.com"]
[Date "2024.07.09"]
[Round "4"]
[White "paranoyak"]
[Black "Yan_Dyomin2010"]
[Result "1-0"]
[WhiteElo "2566"]
[BlackElo "2750"]
[TimeControl "180+1"]
[EndTime "8:38:14 PDT"]
[Termination "paranoyak won by resignation"]

1. e4 {[%clk 0:02:21.3]} 1... c5 {[%clk 0:02:54.6]} 2. Nf3 {[%clk 0:02:21]} 2...
Nc6 {[%clk 0:02:51.8]} 3. b3 {[%clk 0:02:16.7]} 3... Nf6 {[%clk 0:02:43.7]} 4.
Nc3 {[%clk 0:02:14.2]} 4... g6 {[%clk 0:02:37.4]} 5. Bb2 {[%clk 0:02:14.4]} 5...
Bg7 {[%clk 0:02:36.9]} 6. Bd3 {[%clk 0:02:15.3]} 6... O-O {[%clk 0:02:36.5]} 7.
O-O {[%clk 0:02:16]} 7... d6 {[%clk 0:02:34.4]} 8. Re1 {[%clk 0:02:16.3]} 8...
Bg4 {[%clk 0:02:32.2]} 9. h3 {[%clk 0:02:16.5]} 9... Bxf3 {[%clk 0:02:32.4]} 10.
Qxf3 {[%clk 0:02:17.4]} 10... Ne5 {[%clk 0:02:31.5]} 11. Qe2 {[%clk 0:02:17.6]}
11... Nxd3 {[%clk 0:02:31.9]} 12. Qxd3 {[%clk 0:02:18.3]} 12... Nd7 {[%clk
0:02:30.9]} 13. f4 {[%clk 0:02:17.3]} 13... a6 {[%clk 0:02:27.9]} 14. a4 {[%clk
0:02:15.3]} 14... Nb8 {[%clk 0:02:27.1]} 15. Nd1 {[%clk 0:02:06.2]} 15... Nc6
{[%clk 0:02:23.9]} 16. Bxg7 {[%clk 0:02:05.9]} 16... Kxg7 {[%clk 0:02:24.8]} 17.
Ne3 {[%clk 0:02:06.4]} 17... Rb8 {[%clk 0:02:21.3]} 18. Qc3+ {[%clk 0:02:02.7]}
18... Kg8 {[%clk 0:02:20.9]} 19. Nd5 {[%clk 0:01:52.4]} 19... Nd4 {[%clk
0:02:17.7]} 20. Qd3 {[%clk 0:01:29]} 20... e6 {[%clk 0:02:17]} 21. Ne3 {[%clk
0:01:28]} 21... Qc7 {[%clk 0:02:14.6]} 22. c3 {[%clk 0:01:19.9]} 22... Nc6
{[%clk 0:02:13.1]} 23. Ng4 {[%clk 0:01:11.1]} 23... h5 {[%clk 0:02:12.2]} 24.
Nf6+ {[%clk 0:01:02.7]} 24... Kg7 {[%clk 0:02:12.2]} 25. e5 {[%clk 0:01:03.6]}
25... dxe5 {[%clk 0:02:12.4]} 26. fxe5 {[%clk 0:01:04.5]} 26... Nxe5 {[%clk
0:02:10.6]} 27. Nxh5+ {[%clk 0:01:05.1]} 27... Kh6 {[%clk 0:01:37]} 28. Qg3
{[%clk 0:00:42.7]} 28... f6 {[%clk 0:01:28.7]} 29. Nf4 {[%clk 0:00:36.8]} 29...
Qf7 {[%clk 0:01:14.5]} 30. d4 {[%clk 0:00:23.2]} 1-0

[Event "Early-Titled-Tuesday-Blitz-July-09-2024"]
[Site "Chess.com"]
[Date "2024.07.09"]
[Round "4"]
[White "Cheer_Down"]
[Black "Puzzlebot_1294"]
[Result "0-1"]
[WhiteElo "2432"]
[BlackElo "2682"]
[TimeControl "180+1"]
[EndTime "8:38:17 PDT"]
[Termination "Puzzlebot_1294 won by resignation"]

1. e4 {[%clk 0:03:00.9]} 1... e5 {[%clk 0:02:58.8]} 2. Nf3 {[%clk 0:03:00.6]}
2... Nc6 {[%clk 0:02:57.4]} 3. Bc4 {[%clk 0:03:00.4]} 3... Bc5 {[%clk
0:02:57.2]} 4. c3 {[%clk 0:02:59.9]} 4... Nf6 {[%clk 0:02:57]} 5. d3 {[%clk
0:03:00]} 5... d6 {[%clk 0:02:55.8]} 6. O-O {[%clk 0:02:59.7]} 6... a6 {[%clk
0:02:56.4]} 7. a4 {[%clk 0:02:57.4]} 7... Ba7 {[%clk 0:02:55.9]} 8. Re1 {[%clk
0:02:56.5]} 8... h6 {[%clk 0:02:55.1]} 9. Nbd2 {[%clk 0:02:55.9]} 9... O-O
{[%clk 0:02:54.7]} 10. h3 {[%clk 0:02:54.4]} 10... Re8 {[%clk 0:02:53.4]} 11. b4
{[%clk 0:02:53.2]} 11... Be6 {[%clk 0:02:52.4]} 12. Bxe6 {[%clk 0:02:52.7]}
12... Rxe6 {[%clk 0:02:53.3]} 13. Qc2 {[%clk 0:02:47.1]} 13... b5 {[%clk
0:02:51.6]} 14. axb5 {[%clk 0:02:04.6]} 14... axb5 {[%clk 0:02:52.5]} 15. Ra2
{[%clk 0:02:04.7]} 15... d5 {[%clk 0:02:37.2]} 16. exd5 {[%clk 0:02:04]} 16...
Nxd5 {[%clk 0:02:38.1]} 17. Ba3 {[%clk 0:01:49.3]} 17... Nf4 {[%clk 0:02:25.3]}
18. d4 {[%clk 0:01:23.8]} 18... exd4 {[%clk 0:02:17.1]} 19. Rxe6 {[%clk
0:01:23.8]} 19... Nxe6 {[%clk 0:02:18]} 20. c4 {[%clk 0:01:22.2]} 20... d3
{[%clk 0:02:10]} 21. Qb1 {[%clk 0:01:17.5]} 21... bxc4 {[%clk 0:01:51.9]} 22.
Nxc4 {[%clk 0:01:17.1]} 22... Nf4 {[%clk 0:01:52]} 23. b5 {[%clk 0:01:11.9]}
23... Nd4 {[%clk 0:01:49.1]} 24. Nce5 {[%clk 0:00:58]} 24... Nde2+ {[%clk
0:01:43.8]} 25. Kf1 {[%clk 0:00:57.9]} 25... Qd5 {[%clk 0:01:27.9]} 26. Nc6
{[%clk 0:00:48.6]} 26... Bc5 {[%clk 0:01:03.4]} 0-1

[Event "Early-Titled-Tuesday-Blitz-July-09-2024"]
[Site "Chess.com"]
[Date "2024.07.09"]
[Round "4"]
[White "Veleamater"]
[Black "Sadykov_Ramil"]
[Result "0-1"]
[WhiteElo "2405"]
[BlackElo "2617"]
[TimeControl "180+1"]
[EndTime "8:38:19 PDT"]
[Termination "Sadykov_Ramil won by resignation"]

1. g3 {[%clk 0:03:00.9]} 1... h5 {[%clk 0:02:57.3]} 2. d4 {[%clk 0:03:00]} 2...
h4 {[%clk 0:02:57.1]} 3. gxh4 {[%clk 0:03:00.2]} 3... e6 {[%clk 0:02:52.3]} 4.
c4 {[%clk 0:03:00.2]} 4... d5 {[%clk 0:02:47.4]} 5. Nc3 {[%clk 0:02:59.4]} 5...
Be7 {[%clk 0:02:44]} 6. cxd5 {[%clk 0:02:57.8]} 6... exd5 {[%clk 0:02:44.1]} 7.
Nf3 {[%clk 0:02:57.8]} 7... c6 {[%clk 0:02:37.9]} 8. Bg5 {[%clk 0:02:57.4]} 8...
Bf5 {[%clk 0:02:31.1]} 9. Qd2 {[%clk 0:02:54.4]} 9... Nd7 {[%clk 0:02:27.4]} 10.
Qf4 {[%clk 0:02:53.7]} 10... g6 {[%clk 0:02:14]} 11. Bxe7 {[%clk 0:02:33.1]}
11... Qxe7 {[%clk 0:02:10.2]} 12. Bg2 {[%clk 0:02:32.3]} 12... Ngf6 {[%clk
0:02:06.2]} 13. Ne5 {[%clk 0:02:19.9]} 13... Nxe5 {[%clk 0:02:01.6]} 14. dxe5
{[%clk 0:02:19.4]} 14... Nd7 {[%clk 0:02:01.1]} 15. e4 {[%clk 0:02:17.5]} 15...
Rxh4 {[%clk 0:01:59]} 16. Qg3 {[%clk 0:02:09.4]} 16... dxe4 {[%clk 0:01:39.3]}
17. O-O-O {[%clk 0:02:05.4]} 17... O-O-O {[%clk 0:01:30]} 18. Rhe1 {[%clk
0:01:58]} 18... Rg4 {[%clk 0:01:25.6]} 19. Qe3 {[%clk 0:01:33.4]} 19... Rxg2
{[%clk 0:01:20.7]} 20. Qxa7 {[%clk 0:01:32.9]} 20... Qxe5 {[%clk 0:01:19.9]} 21.
Rd4 {[%clk 0:01:15.5]} 21... Qc5 {[%clk 0:01:05.1]} 22. Qa4 {[%clk 0:01:10.1]}
22... Nb6 {[%clk 0:01:01.3]} 23. Rxd8+ {[%clk 0:01:01.7]} 23... Kxd8 {[%clk
0:01:02.2]} 24. Qb3 {[%clk 0:00:55.7]} 24... Qxf2 {[%clk 0:00:57.1]} 25. Rd1+
{[%clk 0:00:53.9]} 25... Kc8 {[%clk 0:00:51.8]} 26. Nb5 {[%clk 0:00:48.9]} 26...
cxb5 {[%clk 0:00:46.9]} 27. Qc3+ {[%clk 0:00:47.9]} 27... Nc4 {[%clk 0:00:46.6]}
28. b3 {[%clk 0:00:45]} 28... Qe3+ {[%clk 0:00:41.8]} 0-1